[Event "Titled Tuesday Blitz June 20 Early 2023"]
[White "Baches Garcia, Guillermo"]
[Black "Zallio, Luciano de Souza"]
[WhiteFideId "2209764"]
[BlackFideId "2109700"]
[WhiteElo "2478"]
[BlackElo "2057"]
[Result "1-0"]
[Round "2"]
[TimeControl "180+2"]
[Date "2023.06.20"]
[WhiteClock "0:00:12"]
[BlackClock "0:00:23"]
[Board "218"]

1. e4 {[%clk 0:03:00]}  e6 {[%clk 0:02:59]} 2. d4 {[%clk 0:03:00]}  d5 {[%clk 0:03:00]} 3. exd5 {[%clk 0:03:01]}  exd5 {[%clk 0:03:00]} 4. Nf3 {[%clk 0:03:01]}  Bd6 {[%clk 0:03:00]} 5. c4 {[%clk 0:03:01]}  c6 {[%clk 0:02:56]} 6. Nc3 {[%clk 0:03:00]}  Ne7 {[%clk 0:02:50]} 7. Bd3 {[%clk 0:02:59]}  Bg4 {[%clk 0:02:49]} 8. O-O {[%clk 0:02:56]}  Nd7 {[%clk 0:02:31]} 9. Re1 {[%clk 0:02:54]}  Nf6 {[%clk 0:02:15]} 10. Bg5 {[%clk 0:02:48]}  dxc4 {[%clk 0:02:06]} 11. Bxc4 {[%clk 0:02:40]}  Qc7 {[%clk 0:01:59]} 12. h3 {[%clk 0:02:31]}  Bh5 {[%clk 0:01:58]} 13. Rc1 {[%clk 0:02:11]}  O-O {[%clk 0:01:50]} 14. Bxf6 {[%clk 0:01:54]}  gxf6 {[%clk 0:01:49]} 15. Qd3 {[%clk 0:01:54]}  Rad8 {[%clk 0:01:41]} 16. Bb3 {[%clk 0:01:47]}  Bg6 {[%clk 0:01:38]} 17. Qe2 {[%clk 0:01:32]}  Rfe8 {[%clk 0:01:35]} 18. Nb5 {[%clk 0:01:29]}  Qb8 {[%clk 0:01:33]} 19. Nxd6 {[%clk 0:01:28]}  Qxd6 {[%clk 0:01:33]} 20. Qd2 {[%clk 0:01:24]}  Nf5 {[%clk 0:01:29]} 21. Rxe8+ {[%clk 0:01:15]}  Rxe8 {[%clk 0:01:30]} 22. d5 {[%clk 0:01:10]}  Rd8 {[%clk 0:01:25]} 23. dxc6 {[%clk 0:01:04]}  bxc6 {[%clk 0:01:21]} 24. Qxd6 {[%clk 0:00:49]}  Rxd6 {[%clk 0:01:20]} 25. g4 {[%clk 0:00:48]}  Ne7 {[%clk 0:01:07]} 26. Rc5 {[%clk 0:00:47]}  Be4 {[%clk 0:01:04]} 27. Nh4 {[%clk 0:00:38]}  Rd2 {[%clk 0:01:03]} 28. f3 {[%clk 0:00:32]}  Bd5 {[%clk 0:00:46]} 29. Bxd5 {[%clk 0:00:30]}  cxd5 {[%clk 0:00:40]} 30. Rc7 {[%clk 0:00:27]}  Kf8 {[%clk 0:00:38]} 31. Rxa7 {[%clk 0:00:21]}  Rxb2 {[%clk 0:00:38]} 32. a4 {[%clk 0:00:20]}  d4 {[%clk 0:00:38]} 33. a5 {[%clk 0:00:17]}  d3 {[%clk 0:00:36]} 34. Rd7 {[%clk 0:00:17]}  d2 {[%clk 0:00:36]} 35. Kf1 {[%clk 0:00:15]}  Nc6 {[%clk 0:00:33]} 36. Nf5 {[%clk 0:00:13]}  Nxa5 {[%clk 0:00:23]} 37. Rd8# {[%clk 0:00:12]} 1-0


[Site "https://www.chess.com"]

[Event "Titled Tuesday Blitz June 20 Early 2023"]
[White "Mattheii"]
[Black "Ruge, Edison"]
[BlackFideId "4401000"]
[WhiteElo "2475"]
[BlackElo "2175"]
[Result "1/2-1/2"]
[Round "2"]
[TimeControl "180+2"]
[Date "2023.06.20"]
[WhiteClock "0:00:07"]
[BlackClock "0:00:18"]
[Board "219"]

1. d4 {[%clk 0:03:00]}  d5 {[%clk 0:02:58]} 2. c4 {[%clk 0:02:59]}  e5 {[%clk 0:02:59]} 3. dxe5 {[%clk 0:02:58]}  d4 {[%clk 0:02:59]} 4. Nf3 {[%clk 0:02:59]}  Nc6 {[%clk 0:03:00]} 5. g3 {[%clk 0:02:58]}  Bg4 {[%clk 0:03:00]} 6. Bg2 {[%clk 0:02:56]}  Bb4+ {[%clk 0:03:01]} 7. Bd2 {[%clk 0:02:54]}  Bxd2+ {[%clk 0:02:55]} 8. Nbxd2 {[%clk 0:02:51]}  Nge7 {[%clk 0:02:54]} 9. O-O {[%clk 0:02:48]}  O-O {[%clk 0:02:53]} 10. h3 {[%clk 0:02:29]}  Bh5 {[%clk 0:02:47]} 11. Nb3 {[%clk 0:02:14]}  Bxf3 {[%clk 0:02:44]} 12. Bxf3 {[%clk 0:02:14]}  Nxe5 {[%clk 0:02:44]} 13. Bxb7 {[%clk 0:02:08]}  Rb8 {[%clk 0:02:44]} 14. Bg2 {[%clk 0:02:03]}  Nxc4 {[%clk 0:02:35]} 15. Rc1 {[%clk 0:02:03]}  Nxb2 {[%clk 0:02:22]} 16. Qxd4 {[%clk 0:02:03]}  Qxd4 {[%clk 0:02:17]} 17. Nxd4 {[%clk 0:02:03]}  Rb4 {[%clk 0:02:13]} 18. Rxc7 {[%clk 0:01:57]}  Rxd4 {[%clk 0:02:07]} 19. Rxe7 {[%clk 0:01:57]}  a5 {[%clk 0:02:07]} 20. Rb1 {[%clk 0:01:49]}  Rd2 {[%clk 0:02:04]} 21. e3 {[%clk 0:01:38]}  Rc8 {[%clk 0:01:49]} 22. Rb7 {[%clk 0:01:29]}  Nd1 {[%clk 0:01:19]} 23. Rb8 {[%clk 0:00:46]}  Rcd8 {[%clk 0:01:15]} 24. Bf3 {[%clk 0:00:34]}  Nc3 {[%clk 0:01:10]} 25. Rxd8+ {[%clk 0:00:34]}  Rxd8 {[%clk 0:01:08]} 26. Rb3 {[%clk 0:00:28]}  Nxa2 {[%clk 0:01:01]} 27. Ra3 {[%clk 0:00:28]}  Nb4 {[%clk 0:00:56]} 28. Rxa5 {[%clk 0:00:27]}  g6 {[%clk 0:00:55]} 29. Ra1 {[%clk 0:00:24]}  Kg7 {[%clk 0:00:54]} 30. h4 {[%clk 0:00:24]}  Rd2 {[%clk 0:00:49]} 31. Be4 {[%clk 0:00:18]}  f5 {[%clk 0:00:46]} 32. Ra7+ {[%clk 0:00:17]}  Kf6 {[%clk 0:00:42]} 33. Bg2 {[%clk 0:00:15]}  Nd3 {[%clk 0:00:41]} 34. Rxh7 {[%clk 0:00:16]}  Nxf2 {[%clk 0:00:40]} 35. h5 {[%clk 0:00:15]}  gxh5 {[%clk 0:00:36]} 36. Rxh5 {[%clk 0:00:15]}  Ng4 {[%clk 0:00:37]} 37. Bf3 {[%clk 0:00:07]}  Nxe3 {[%clk 0:00:29]} 38. Rh6+ {[%clk 0:00:07]}  Kg5 {[%clk 0:00:28]} 39. Rh5+ {[%clk 0:00:07]}  Kf6 {[%clk 0:00:27]} 40. Rh8 {[%clk 0:00:08]}  Ng4 {[%clk 0:00:20]} 41. Bxg4 {[%clk 0:00:07]}  fxg4 {[%clk 0:00:20]} 42. Rf8+ {[%clk 0:00:08]}  Kg5 {[%clk 0:00:19]} 43. Rf4 {[%clk 0:00:09]}  Rb2 {[%clk 0:00:18]} 44. Ra4 {[%clk 0:00:08]}  Rc2 {[%clk 0:00:18]} 45. Ra5+ {[%clk 0:00:09]}  Kf6 {[%clk 0:00:17]} 46. Kf1 {[%clk 0:00:09]}  Kg6 {[%clk 0:00:16]} 47. Rd5 {[%clk 0:00:09]}  Kf6 {[%clk 0:00:16]} 48. Rb5 {[%clk 0:00:09]}  Kg6 {[%clk 0:00:17]} 49. Ra5 {[%clk 0:00:09]}  Kf6 {[%clk 0:00:18]} 50. Rb5 {[%clk 0:00:08]}  Kg6 {[%clk 0:00:18]} 51. Ra5 {[%clk 0:00:07]}  Kf6 {[%clk 0:00:18]} 52. Rb5 {[%clk 0:00:07]} 1/2-1/2


[Site "https://www.chess.com"]

[Event "Titled Tuesday Blitz June 20 Early 2023"]
[White "Butti, Enrique"]
[Black "DanyKopy"]
[WhiteFideId "3700470"]
[WhiteElo "2080"]
[BlackElo "2471"]
[Result "0-1"]
[Round "2"]
[TimeControl "180+2"]
[Date "2023.06.20"]
[WhiteClock "0:00:03"]
[BlackClock "0:00:15"]
[Board "224"]

1. d4 {[%clk 0:02:59]}  Nf6 {[%clk 0:02:58]} 2. c4 {[%clk 0:02:59]}  g6 {[%clk 0:02:58]} 3. Nc3 {[%clk 0:02:58]}  d5 {[%clk 0:02:54]} 4. cxd5 {[%clk 0:02:57]}  Nxd5 {[%clk 0:02:54]} 5. e4 {[%clk 0:02:57]}  Nxc3 {[%clk 0:02:53]} 6. bxc3 {[%clk 0:02:58]}  Bg7 {[%clk 0:02:53]} 7. Bc4 {[%clk 0:02:58]}  c5 {[%clk 0:02:52]} 8. Ne2 {[%clk 0:02:57]}  Nc6 {[%clk 0:02:51]} 9. Be3 {[%clk 0:02:55]}  O-O {[%clk 0:02:51]} 10. O-O {[%clk 0:02:54]}  Bg4 {[%clk 0:02:51]} 11. f3 {[%clk 0:02:53]}  Bd7 {[%clk 0:02:51]} 12. Rb1 {[%clk 0:02:48]}  Qc7 {[%clk 0:02:49]} 13. Bd3 {[%clk 0:02:41]}  Rfd8 {[%clk 0:02:34]} 14. Qd2 {[%clk 0:02:28]}  Rac8 {[%clk 0:02:26]} 15. f4 {[%clk 0:02:11]}  Bg4 {[%clk 0:02:11]} 16. d5 {[%clk 0:02:10]}  e6 {[%clk 0:01:56]} 17. c4 {[%clk 0:01:57]}  Bxe2 {[%clk 0:01:53]} 18. Qxe2 {[%clk 0:01:54]}  Nd4 {[%clk 0:01:51]} 19. Bxd4 {[%clk 0:01:53]}  Bxd4+ {[%clk 0:01:42]} 20. Kh1 {[%clk 0:01:52]}  b6 {[%clk 0:01:07]} 21. Qg4 {[%clk 0:01:48]}  Qd7 {[%clk 0:00:49]} 22. f5 {[%clk 0:01:37]}  exf5 {[%clk 0:00:49]} 23. exf5 {[%clk 0:01:36]}  Re8 {[%clk 0:00:49]} 24. Qh4 {[%clk 0:01:15]}  Re3 {[%clk 0:00:43]} 25. Rbd1 {[%clk 0:01:14]}  Rce8 {[%clk 0:00:34]} 26. f6 {[%clk 0:00:52]}  Qd6 {[%clk 0:00:33]} 27. Bb1 {[%clk 0:00:34]}  R8e5 {[%clk 0:00:26]} 28. Qh6 {[%clk 0:00:28]}  Qf8 {[%clk 0:00:26]} 29. Qf4 {[%clk 0:00:25]}  Rh5 {[%clk 0:00:21]} 30. d6 {[%clk 0:00:18]}  Re6 {[%clk 0:00:17]} 31. d7 {[%clk 0:00:16]}  Qd8 {[%clk 0:00:17]} 32. Rxd4 {[%clk 0:00:14]}  cxd4 {[%clk 0:00:17]} 33. Qxd4 {[%clk 0:00:15]}  Rf5 {[%clk 0:00:15]} 34. Rd1 {[%clk 0:00:12]}  Rfe5 {[%clk 0:00:15]} 35. c5 {[%clk 0:00:03]}  Re1+ {[%clk 0:00:15]} 0-1


[Site "https://www.chess.com"]

[Event "Titled Tuesday Blitz June 20 Early 2023"]
[White "Zaitsev, Alexander"]
[Black "Sariego Figueredo, Wilfredo"]
[WhiteFideId "4164490"]
[BlackFideId "3500080"]
[WhiteElo "2373"]
[BlackElo "2309"]
[Result "1-0"]
[Round "2"]
[TimeControl "180+2"]
[Date "2023.06.20"]
[WhiteClock "0:00:53"]
[BlackClock "0:01:26"]
[Board "225"]

1. e4 {[%clk 0:03:00]}  c5 {[%clk 0:02:59]} 2. Nf3 {[%clk 0:03:01]}  a6 {[%clk 0:02:59]} 3. g3 {[%clk 0:03:00]}  Nc6 {[%clk 0:02:58]} 4. Bg2 {[%clk 0:03:01]}  e5 {[%clk 0:02:58]} 5. O-O {[%clk 0:03:01]}  Nf6 {[%clk 0:02:59]} 6. Re1 {[%clk 0:03:00]}  Be7 {[%clk 0:02:59]} 7. c3 {[%clk 0:03:00]}  d6 {[%clk 0:02:57]} 8. h3 {[%clk 0:02:57]}  O-O {[%clk 0:02:57]} 9. d4 {[%clk 0:02:58]}  Bd7 {[%clk 0:02:53]} 10. d5 {[%clk 0:02:56]}  Nb8 {[%clk 0:02:51]} 11. b4 {[%clk 0:02:52]}  Qc8 {[%clk 0:02:48]} 12. Kh2 {[%clk 0:02:50]}  Bb5 {[%clk 0:02:39]} 13. a4 {[%clk 0:02:44]}  Be8 {[%clk 0:02:37]} 14. Na3 {[%clk 0:02:13]}  Nbd7 {[%clk 0:02:34]} 15. a5 {[%clk 0:02:13]}  b5 {[%clk 0:02:27]} 16. axb6 {[%clk 0:02:07]}  Nxb6 {[%clk 0:02:27]} 17. bxc5 {[%clk 0:02:01]}  Qxc5 {[%clk 0:02:26]} 18. Be3 {[%clk 0:02:00]}  Qc7 {[%clk 0:02:26]} 19. Nd2 {[%clk 0:01:51]}  Nbd7 {[%clk 0:02:18]} 20. Nb3 {[%clk 0:01:37]}  a5 {[%clk 0:02:10]} 21. c4 {[%clk 0:01:31]}  a4 {[%clk 0:02:10]} 22. Nd2 {[%clk 0:01:21]}  Nc5 {[%clk 0:02:07]} 23. Qc2 {[%clk 0:01:20]}  Bd7 {[%clk 0:02:02]} 24. Reb1 {[%clk 0:01:20]}  Rfb8 {[%clk 0:02:01]} 25. Nb5 {[%clk 0:01:19]}  Bxb5 {[%clk 0:02:01]} 26. cxb5 {[%clk 0:01:19]}  Qb6 {[%clk 0:02:00]} 27. Nc4 {[%clk 0:01:19]}  Qd8 {[%clk 0:01:58]} 28. Bxc5 {[%clk 0:01:18]}  dxc5 {[%clk 0:01:58]} 29. Rxa4 {[%clk 0:01:16]}  Rxa4 {[%clk 0:01:57]} 30. Qxa4 {[%clk 0:01:17]}  Ra8 {[%clk 0:01:58]} 31. Qc2 {[%clk 0:01:14]}  Nd7 {[%clk 0:01:53]} 32. b6 {[%clk 0:01:11]}  Rb8 {[%clk 0:01:52]} 33. b7 {[%clk 0:01:12]}  Qc7 {[%clk 0:01:51]} 34. Qb3 {[%clk 0:01:11]}  Bd8 {[%clk 0:01:39]} 35. Qb5 {[%clk 0:01:11]}  Nf6 {[%clk 0:01:39]} 36. Qc6 {[%clk 0:01:10]}  Qxc6 {[%clk 0:01:38]} 37. dxc6 {[%clk 0:01:10]}  Bc7 {[%clk 0:01:38]} 38. Na3 {[%clk 0:00:56]}  Ne8 {[%clk 0:01:33]} 39. Nb5 {[%clk 0:00:57]}  f6 {[%clk 0:01:33]} 40. h4 {[%clk 0:00:57]}  Kf7 {[%clk 0:01:33]} 41. Bh3 {[%clk 0:00:58]}  Ke7 {[%clk 0:01:33]} 42. Rd1 {[%clk 0:00:58]}  Bd6 {[%clk 0:01:31]} 43. Bd7 {[%clk 0:00:53]}  Bc7 {[%clk 0:01:28]} 44. Bxe8 {[%clk 0:00:54]}  Kxe8 {[%clk 0:01:28]} 45. Nxc7+ {[%clk 0:00:54]}  Ke7 {[%clk 0:01:29]} 46. Rd7+ {[%clk 0:00:53]}  Kf8 {[%clk 0:01:26]} 47. Na6 {[%clk 0:00:53]} 1-0


[Site "https://www.chess.com"]

[Event "Titled Tuesday Blitz June 20 Early 2023"]
[White "Nikulina, Alena"]
[Black "Tanmay Jain"]
[WhiteFideId "4172051"]
[BlackFideId "45015481"]
[WhiteElo "1608"]
[BlackElo "2032"]
[Result "0-1"]
[Round "2"]
[TimeControl "180+2"]
[Date "2023.06.20"]
[WhiteClock "0:00:08"]
[BlackClock "0:00:55"]
[Board "226"]

1. e4 {[%clk 0:03:00]}  c5 {[%clk 0:02:56]} 2. Nf3 {[%clk 0:03:00]}  d6 {[%clk 0:02:56]} 3. c3 {[%clk 0:02:59]}  Nc6 {[%clk 0:02:53]} 4. d4 {[%clk 0:02:57]}  cxd4 {[%clk 0:02:54]} 5. cxd4 {[%clk 0:02:57]}  g6 {[%clk 0:02:54]} 6. Nc3 {[%clk 0:02:56]}  Bg7 {[%clk 0:02:54]} 7. Be3 {[%clk 0:02:57]}  e6 {[%clk 0:02:49]} 8. Be2 {[%clk 0:02:55]}  Nge7 {[%clk 0:02:49]} 9. O-O {[%clk 0:02:55]}  d5 {[%clk 0:02:49]} 10. e5 {[%clk 0:02:55]}  O-O {[%clk 0:02:48]} 11. Qd2 {[%clk 0:02:53]}  Nf5 {[%clk 0:02:48]} 12. a3 {[%clk 0:02:52]}  Nxe3 {[%clk 0:02:47]} 13. fxe3 {[%clk 0:02:51]}  Bd7 {[%clk 0:02:45]} 14. e4 {[%clk 0:02:48]}  dxe4 {[%clk 0:02:40]} 15. Nxe4 {[%clk 0:02:48]}  f5 {[%clk 0:02:35]} 16. exf6 {[%clk 0:02:31]}  Bxf6 {[%clk 0:02:35]} 17. Nc5 {[%clk 0:02:12]}  Bc8 {[%clk 0:02:27]} 18. Rad1 {[%clk 0:02:03]}  Qd5 {[%clk 0:02:26]} 19. b3 {[%clk 0:01:53]}  Nxd4 {[%clk 0:02:14]} 20. Nxd4 {[%clk 0:01:46]}  Qxc5 {[%clk 0:02:14]} 21. b4 {[%clk 0:01:40]}  Qe7 {[%clk 0:02:11]} 22. Bc4 {[%clk 0:01:34]}  Kg7 {[%clk 0:02:05]} 23. Rfe1 {[%clk 0:01:08]}  e5 {[%clk 0:02:02]} 24. Nf3 {[%clk 0:00:56]}  Bg4 {[%clk 0:01:57]} 25. Bd5 {[%clk 0:00:46]}  Rad8 {[%clk 0:01:53]} 26. Qe3 {[%clk 0:00:40]}  b6 {[%clk 0:01:38]} 27. h3 {[%clk 0:00:38]}  Be6 {[%clk 0:01:29]} 28. Be4 {[%clk 0:00:38]}  Rxd1 {[%clk 0:01:25]} 29. Rxd1 {[%clk 0:00:37]}  Rd8 {[%clk 0:01:25]} 30. Rxd8 {[%clk 0:00:31]}  Qxd8 {[%clk 0:01:26]} 31. Kh2 {[%clk 0:00:23]}  Qd7 {[%clk 0:01:21]} 32. Ng5 {[%clk 0:00:20]}  Bf5 {[%clk 0:01:15]} 33. Nf3 {[%clk 0:00:17]}  Qe6 {[%clk 0:01:11]} 34. g4 {[%clk 0:00:13]}  Bxe4 {[%clk 0:01:07]} 35. Qxe4 {[%clk 0:00:14]}  Qd6 {[%clk 0:01:06]} 36. g5 {[%clk 0:00:12]}  Be7 {[%clk 0:01:05]} 37. h4 {[%clk 0:00:12]}  h6 {[%clk 0:00:57]} 38. gxh6+ {[%clk 0:00:10]}  Kxh6 {[%clk 0:00:57]} 39. Qxe5 {[%clk 0:00:10]}  Qxe5+ {[%clk 0:00:57]} 40. Nxe5 {[%clk 0:00:10]}  Bd6 {[%clk 0:00:55]} 41. Kg3 {[%clk 0:00:08]} 0-1


[Site "https://www.chess.com"]

[Event "Titled Tuesday Blitz June 20 Early 2023"]
[White "LangesNasenhaar"]
[Black "Vargas Rodriguez, Wilver"]
[BlackFideId "3509672"]
[WhiteElo "2465"]
[BlackElo "2245"]
[Result "1-0"]
[Round "2"]
[TimeControl "180+2"]
[Date "2023.06.20"]
[WhiteClock "0:02:06"]
[BlackClock "0:00:00"]
[Board "228"]

1. d4 {[%clk 0:03:00]}  Nf6 {[%clk 0:02:59]} 2. Nc3 {[%clk 0:03:01]}  d5 {[%clk 0:02:56]} 3. Bf4 {[%clk 0:03:01]}  c6 {[%clk 0:02:55]} 4. e3 {[%clk 0:03:02]}  Bf5 {[%clk 0:02:55]} 5. Nf3 {[%clk 0:03:02]}  e6 {[%clk 0:02:54]} 6. Ne5 {[%clk 0:03:03]}  Nbd7 {[%clk 0:02:53]} 7. g4 {[%clk 0:03:03]}  Bg6 {[%clk 0:02:49]} 8. h4 {[%clk 0:03:03]}  h6 {[%clk 0:01:49]} 9. Nxg6 {[%clk 0:03:02]}  fxg6 {[%clk 0:01:50]} 10. Bd3 {[%clk 0:02:57]}  Kf7 {[%clk 0:01:39]} 11. Qf3 {[%clk 0:02:57]}  Bb4 {[%clk 0:01:35]} 12. Ke2 {[%clk 0:02:53]}  Bxc3 {[%clk 0:01:27]} 13. bxc3 {[%clk 0:02:53]}  Ke7 {[%clk 0:00:33]} 14. g5 {[%clk 0:02:34]}  Nh5 {[%clk 0:00:12]} 15. Bxg6 {[%clk 0:02:27]}  Nxf4+ {[%clk 0:00:11]} 16. Qxf4 {[%clk 0:02:24]}  Qf8 {[%clk 0:00:10]} 17. Qxf8+ {[%clk 0:02:20]}  Raxf8 {[%clk 0:00:09]} 18. f4 {[%clk 0:02:20]}  Nb6 {[%clk 0:00:08]} 19. Bd3 {[%clk 0:02:19]}  Kd6 {[%clk 0:00:08]} 20. Rag1 {[%clk 0:02:11]}  h5 {[%clk 0:00:07]} 21. g6 {[%clk 0:02:07]}  Rf6 {[%clk 0:00:00]} 22. Rg5 {[%clk 0:02:06]} 1-0


[Site "https://www.chess.com"]

[Event "Titled Tuesday Blitz June 20 Early 2023"]
[White "Hartikainen, Jarmo"]
[Black "Rohde, Michael"]
[WhiteFideId "503134"]
[BlackFideId "2000172"]
[WhiteElo "2141"]
[BlackElo "2274"]
[Result "0-1"]
[Round "2"]
[TimeControl "180+2"]
[Date "2023.06.20"]
[WhiteClock "0:00:00"]
[BlackClock "0:00:28"]
[Board "229"]

1. e4 {[%clk 0:03:00]}  c5 {[%clk 0:02:58]} 2. c3 {[%clk 0:03:00]}  Nf6 {[%clk 0:02:55]} 3. e5 {[%clk 0:02:59]}  Nd5 {[%clk 0:02:55]} 4. d4 {[%clk 0:02:59]}  cxd4 {[%clk 0:02:55]} 5. Nf3 {[%clk 0:02:55]}  e6 {[%clk 0:02:55]} 6. cxd4 {[%clk 0:02:55]}  d6 {[%clk 0:02:55]} 7. Nc3 {[%clk 0:02:55]}  Nc6 {[%clk 0:02:50]} 8. Bd3 {[%clk 0:02:48]}  dxe5 {[%clk 0:02:43]} 9. dxe5 {[%clk 0:02:43]}  Ndb4 {[%clk 0:02:42]} 10. Be4 {[%clk 0:02:21]}  Qxd1+ {[%clk 0:02:40]} 11. Nxd1 {[%clk 0:02:20]}  Bd7 {[%clk 0:02:33]} 12. O-O {[%clk 0:02:19]}  Na6 {[%clk 0:02:07]} 13. a3 {[%clk 0:01:54]}  Nc5 {[%clk 0:02:05]} 14. Bc2 {[%clk 0:01:52]}  a5 {[%clk 0:02:03]} 15. Be3 {[%clk 0:01:40]}  a4 {[%clk 0:01:54]} 16. Rc1 {[%clk 0:01:39]}  Nb3 {[%clk 0:01:50]} 17. Bxb3 {[%clk 0:01:38]}  axb3 {[%clk 0:01:50]} 18. Nc3 {[%clk 0:01:31]}  Be7 {[%clk 0:01:46]} 19. Ne4 {[%clk 0:01:17]}  O-O {[%clk 0:01:42]} 20. Nc5 {[%clk 0:01:16]}  Bxc5 {[%clk 0:01:35]} 21. Bxc5 {[%clk 0:01:14]}  Rfc8 {[%clk 0:01:35]} 22. Rfd1 {[%clk 0:01:12]}  Be8 {[%clk 0:01:33]} 23. Bd6 {[%clk 0:01:08]}  Na5 {[%clk 0:01:31]} 24. Nd4 {[%clk 0:01:00]}  Nc4 {[%clk 0:01:26]} 25. Nxb3 {[%clk 0:00:49]}  Ba4 {[%clk 0:01:16]} 26. Rd3 {[%clk 0:00:16]}  Bxb3 {[%clk 0:01:06]} 27. Rxb3 {[%clk 0:00:14]}  Nxd6 {[%clk 0:01:04]} 28. Rbc3 {[%clk 0:00:11]}  Rxc3 {[%clk 0:00:57]} 29. Rxc3 {[%clk 0:00:12]}  Ne8 {[%clk 0:00:52]} 30. f4 {[%clk 0:00:11]}  Kf8 {[%clk 0:00:51]} 31. g3 {[%clk 0:00:10]}  Ke7 {[%clk 0:00:51]} 32. Kg2 {[%clk 0:00:11]}  Kd7 {[%clk 0:00:51]} 33. Rb3 {[%clk 0:00:11]}  Kc7 {[%clk 0:00:47]} 34. Rc3+ {[%clk 0:00:11]}  Kb6 {[%clk 0:00:47]} 35. Rb3+ {[%clk 0:00:12]}  Ka6 {[%clk 0:00:46]} 36. Rd3 {[%clk 0:00:12]}  Rc8 {[%clk 0:00:43]} 37. Rd7 {[%clk 0:00:11]}  Rc2+ {[%clk 0:00:42]} 38. Kh3 {[%clk 0:00:12]}  Nc7 {[%clk 0:00:41]} 39. Rxf7 {[%clk 0:00:12]}  Nd5 {[%clk 0:00:41]} 40. b4 {[%clk 0:00:09]}  Ne3 {[%clk 0:00:37]} 41. Rxg7 {[%clk 0:00:08]}  Nf1 {[%clk 0:00:37]} 42. Rxh7 {[%clk 0:00:07]}  Rxh2+ {[%clk 0:00:36]} 43. Kg4 {[%clk 0:00:07]}  Rxh7 {[%clk 0:00:37]} 44. f5 {[%clk 0:00:07]}  exf5+ {[%clk 0:00:35]} 45. Kf4 {[%clk 0:00:07]}  Nd2 {[%clk 0:00:34]} 46. Kxf5 {[%clk 0:00:06]}  Kb6 {[%clk 0:00:35]} 47. g4 {[%clk 0:00:06]}  Kc6 {[%clk 0:00:35]} 48. g5 {[%clk 0:00:06]}  Kd7 {[%clk 0:00:34]} 49. g6 {[%clk 0:00:07]}  Rh1 {[%clk 0:00:32]} 50. Kf6 {[%clk 0:00:05]}  Ne4+ {[%clk 0:00:31]} 51. Kf7 {[%clk 0:00:05]}  Ng5+ {[%clk 0:00:30]} 52. Kf6 {[%clk 0:00:02]}  Ne6 {[%clk 0:00:30]} 53. g7 {[%clk 0:00:01]}  Nxg7 {[%clk 0:00:30]} 54. Kxg7 {[%clk 0:00:01]}  Ke6 {[%clk 0:00:30]} 55. a4 {[%clk 0:00:00]}  Rb1 {[%clk 0:00:28]} 0-1


[Site "https://www.chess.com"]

[Event "Titled Tuesday Blitz June 20 Early 2023"]
[White "Jaivardhan Raj"]
[Black "Bazilius, Augustinas"]
[WhiteFideId "25744437"]
[BlackFideId "12832251"]
[WhiteElo "1772"]
[BlackElo "1980"]
[Result "0-1"]
[Round "2"]
[TimeControl "180+2"]
[Date "2023.06.20"]
[WhiteClock "0:01:14"]
[BlackClock "0:01:33"]
[Board "231"]

1. e4 {[%clk 0:03:00]}  c5 {[%clk 0:02:59]} 2. Nf3 {[%clk 0:02:59]}  d6 {[%clk 0:02:59]} 3. d4 {[%clk 0:02:59]}  cxd4 {[%clk 0:03:00]} 4. Qxd4 {[%clk 0:03:00]}  Nf6 {[%clk 0:03:00]} 5. c4 {[%clk 0:02:59]}  Nc6 {[%clk 0:03:01]} 6. Qe3 {[%clk 0:02:58]}  g6 {[%clk 0:02:56]} 7. Nc3 {[%clk 0:02:56]}  Bg7 {[%clk 0:02:57]} 8. h3 {[%clk 0:02:55]}  O-O {[%clk 0:02:53]} 9. Be2 {[%clk 0:02:55]}  Nd7 {[%clk 0:02:46]} 10. O-O {[%clk 0:02:54]}  Nc5 {[%clk 0:02:46]} 11. Nd2 {[%clk 0:02:47]}  Nd4 {[%clk 0:02:40]} 12. Rb1 {[%clk 0:02:38]}  f5 {[%clk 0:02:15]} 13. exf5 {[%clk 0:02:31]}  Bxf5 {[%clk 0:02:10]} 14. Nde4 {[%clk 0:02:26]}  Nxe2+ {[%clk 0:02:02]} 15. Qxe2 {[%clk 0:02:19]}  Bxc3 {[%clk 0:02:02]} 16. Nxc5 {[%clk 0:02:07]}  dxc5 {[%clk 0:02:03]} 17. Ra1 {[%clk 0:01:59]}  Bf6 {[%clk 0:01:57]} 18. g4 {[%clk 0:01:54]}  Bd3 {[%clk 0:01:56]} 19. Qe6+ {[%clk 0:01:54]}  Kg7 {[%clk 0:01:56]} 20. Rd1 {[%clk 0:01:50]}  Bxc4 {[%clk 0:01:51]} 21. Qe1 {[%clk 0:01:35]}  Qc7 {[%clk 0:01:48]} 22. Qe3 {[%clk 0:01:33]}  Rad8 {[%clk 0:01:45]} 23. Qh6+ {[%clk 0:01:32]}  Kg8 {[%clk 0:01:45]} 24. Bf4 {[%clk 0:01:32]}  Qb6 {[%clk 0:01:41]} 25. b3 {[%clk 0:01:31]}  Bxa1 {[%clk 0:01:34]} 26. Rxa1 {[%clk 0:01:27]}  Qf6 {[%clk 0:01:34]} 27. Re1 {[%clk 0:01:14]}  Qxf4 {[%clk 0:01:33]} 0-1


[Site "https://www.chess.com"]